Cogmind - Beta 14 @@@ ROGUE MODE // 2024.12.26 @ 23:26:40 Player: Nika Jay Result: Self-destructed Performance ------------- Evolutions (6) 3000 Regions Visited (21) 4200 Robots Destroyed (162) 810 Value Destroyed (6683) 6683 Prototype IDs (41) 820 Alien Tech Used (1) 200 Bonus (3907) 3907 TOTAL SCORE: 19620 Bonus ------- High Alert Combat Kills 294 Follower Combat Kills 1753 Network Hubs Disabled 200 Aligned with FarCom 300 Met Imprinter 300 Met Zhirov 300 Built Enhanced Grunts 300 A7 Reached Mainframe 300 Met R17 at Cetus 500 Read Decrypted Archives 300 Friendly Fire -640 Cogmind --------- Core Integrity 1133/1150 Matter 123/300 Energy 325/325 System Corruption 10% Temperature Cool (0) Movement Walking (123) Location -4/Factory Parts ------- > --- POWER (1) -------- Reinforced Antimatter Reactor > --- PROPULSION (6) --- Carbon-fiber Leg Carbon-fiber Leg Makeshift Leg Flexi-carbon Leg Myomer Leg Myomer Leg > --- UTILITY (9) ------ Advanced Heat Sink High-capacity Storage Unit Improved Targeting Computer Improved Target Analyzer Improved Kinecellerator Improved Transmission Jammer Centrium Medium Armor Plating Advanced Shield Generator > --- WEAPON (3) ------- Advanced Assault Cannon Hardcell Cannon > --- INVENTORY (20) --- Light Ion Engine Advanced Medium Treads Carbon-fiber Leg Matter Compressor (0) Improved Transmission Jammer Improved Transmission Jammer Advanced ECM Suite Centrium Medium Armor Plating Long-range Tractor Beam Transdimensional Reconstructor High-powered Shotgun Coil Gun Coil Gun KE Penetrator Rocket Array Improved Plasma Cutter Dirty Bomb Trap Dirty Bomb Trap Dirty Bomb Trap Peak State ------------ > --- POWER ------------ Reinforced Antimatter Reactor > --- PROPULSION ------- Carbon-fiber Leg Carbon-fiber Leg Makeshift Leg Flexi-carbon Leg Myomer Leg Myomer Leg > --- UTILITY ---------- Advanced Heat Sink High-capacity Storage Unit Improved Targeting Computer Improved Kinecellerator Improved Transmission Jammer Centrium Medium Armor Plating Advanced Shield Generator > --- WEAPON ----------- Advanced Assault Cannon Enhanced Gauss Cannon Hardcell Cannon > --- INVENTORY -------- Light Ion Engine Carbon-fiber Leg Flexi-carbon Leg Matter Compressor Improved Transmission Jammer Improved Transmission Jammer Advanced ECM Suite Centrium Medium Armor Plating Long-range Tractor Beam Transdimensional Reconstructor High-powered Shotgun Coil Gun Coil Gun KE Penetrator Rocket Array Improved Plasma Cutter Dirty Bomb Trap Dirty Bomb Trap Dirty Bomb Trap [Rating: 97] Favorites ----------- Power Light Nuclear Core Engine Reinforced Deuterium Engine Power Core Light Nuclear Core Reactor Light Antimatter Reactor Propulsion Carbon-fiber Leg Leg Carbon-fiber Leg Hover Unit Improved Airjet Flight Unit Nuclear Pulse Thruster Utility High-capacity Storage Unit Device Seismic Detector Storage High-capacity Storage Unit Processor Advanced Targeting Computer Hackware Hacking Suite Protection Hardened Medium Armor Plating Weapon Advanced Assault Cannon Energy Gun Medium Laser Energy Cannon Disruptor Cannon Ballistic Gun Assault Rifle Ballistic Cannon Advanced Assault Cannon Launcher Rocket Array Special Weapon Plasma Cutter Impact Weapon Heavy Flail Slashing Weapon Ripper Build | -11 -10 -10 -10 -9 -8 -7 -7 -7 -7 -6 -6 -6 -6 -6 -6 -5 -5 -5 -5 -4 -4 ------- Run | Yrd Mat Min Exi Min Mat Fac Low Low Zio Pro Fac Ext Cet Arc Hub Fac Upp Upp Zhi Pro Fac Slots Evolved 12 | . . . . . 4 2 . . . . 2 . . . . 2 . . . . 2 Power . | . . . . . . . . . . . . . . . . . . . . . . Propulsion 4 | . . . . . 2 2 . . . . . . . . . . . . . . . Utility 7 | . . . . . 1 . . . . . 2 . . . . 2 . . . . 2 Weapon 1 | . . . . . 1 . . . . . . . . . . . . . . . . Parts Attached 182 | 7 4 1 1 4 4 7 3 2 16 . 13 22 7 . 18 34 3 11 8 9 8 Power 18 | 1 1 . . . . 1 1 . . . 4 2 . . . 4 . 2 . 1 1 Engine 12 | 1 1 . . . . 1 . . . . 2 2 . . . 4 . . . 1 . Core 4 | . . . . . . . 1 . . . 1 . . . . . . 2 . . . Reactor 2 | . . . . . . . . . . . 1 . . . . . . . . . 1 Propulsion 61 | 2 . . . 4 2 4 2 2 1 . 6 13 2 . 4 10 1 2 2 2 2 Treads . | . . . . . . . . . . . . . . . . . . . . . . Leg 58 | 2 . . . 4 2 4 2 2 1 . 6 13 2 . 4 8 1 2 1 2 2 Wheel . | . . . . . . . . . . . . . . . . . . . . . . Hover 1 | . . . . . . . . . . . . . . . . 1 . . . . . Flight 2 | . . . . . . . . . . . . . . . . 1 . . 1 . . Utility 58 | 2 1 . 1 . 1 . . . 10 . 3 2 2 . 9 9 2 3 3 6 4 Device 29 | 1 . . . . . . . . 4 . 1 1 . . 3 6 1 3 3 3 3 Storage 3 | 1 1 . 1 . . . . . . . . . . . . . . . . . . Processor 5 | . . . . . 1 . . . . . 1 . . . 1 . . . . 1 1 Hackware 6 | . . . . . . . . . 5 . . . . . . 1 . . . . . Protection 15 | . . . . . . . . . 1 . 1 1 2 . 5 2 1 . . 2 . Artifact . | . . . . . . . . . . . . . . . . . . . . . . Weapon 45 | 2 2 1 . . 1 2 . . 5 . . 5 3 . 5 11 . 4 3 . 1 Energy Gun 2 | 1 . . . . . . . . 1 . . . . . . . . . . . . Energy Cannon 1 | . . . . . . . . . . . . . . . . 1 . . . . . Ballistic Gun 4 | 1 2 1 . . . . . . . . . . . . . . . . . . . Ballistic Cannon 28 | . . . . . 1 1 . . 2 . . 4 2 . 3 8 . 3 3 . 1 Launcher 4 | . . . . . . 1 . . 2 . . . . . . 1 . . . . . Special Weapon 3 | . . . . . . . . . . . . 1 . . 1 1 . . . . . Impact Weapon 1 | . . . . . . . . . . . . . . . . . . 1 . . . Slashing Weapon 2 | . . . . . . . . . . . . . 1 . 1 . . . . . . Piercing Weapon . | . . . . . . . . . . . . . . . . . . . . . . Special Melee Weapon . | . . . . . . . . . . . . . . . . . . . . . . Unidentified Prototypes 8 | . . . . . . . . . 3 . . . 1 . . 1 . . 3 . . Corrupted Parts 1 | . . . . . . . . . . . . . . . . . . . . . 1 System Corruption 8 | . . . . . . . . . . . . . . . . . . . . . 8 Parts Lost 23 | . . . . . . . . . . . 1 1 1 . 1 3 . 6 . 7 3 Power 3 | . . . . . . . . . . . . . . . . 1 . 1 . 1 . Propulsion 7 | . . . . . . . . . . . . . 1 . . 1 . 2 . 2 1 Utility 9 | . . . . . . . . . . . 1 1 . . 1 1 . 1 . 4 . Weapon 4 | . . . . . . . . . . . . . . . . . . 2 . . 2 Highest Loss Streak 6 | . . . . . . . . . . . 1 1 1 . 1 2 . 6 . 5 2 To Critical Strikes . | . . . . . . . . . . . . . . . . . . . . . . Average Slot Usage (%) 90 | . 100 100 100 100 76 83 84 84 84 84 84 96 94 86 85 97 97 93 79 94 89 Engine 3 | . 14 14 14 14 9 6 . . . . 4 2 6 6 6 5 5 1 . . 1 Core 2 | . . . . . . . 6 7 7 7 . . . . . . . 3 5 3 . Leg 38 | . 28 28 28 28 36 46 46 46 46 46 39 39 40 40 40 35 35 34 34 34 31 Device 10 | . 14 14 14 14 9 7 7 7 6 7 10 11 6 6 2 10 11 13 14 17 21 Storage 6 | . 14 14 14 14 9 7 7 7 7 7 6 6 6 6 6 5 5 5 5 5 5 Processor 7 | . . . . . 4 7 7 7 7 7 13 7 6 6 12 11 11 8 5 4 6 Protection 4 | . . . . . . . . . . . . 6 13 13 10 11 8 5 5 7 5 Ballistic Gun 2 | . 24 28 28 28 . . . . . . . . . . . . . . . . . Ballistic Cannon 9 | . . . . . 8 7 7 7 6 7 6 16 14 6 5 15 17 16 6 17 13 Peak Build Rating 97 | 7 8 8 10 12 42 48 50 51 59 54 79 82 82 82 82 86 74 80 81 87 97 Average Rating 58 | 5 7 7 9 10 39 45 49 50 53 54 69 66 71 82 77 71 73 76 70 82 90 On Entrance 50 | . 7 8 8 10 11 42 48 50 51 54 54 79 61 82 82 78 74 74 80 81 82 Naked Turns . | . . . . . . . . . . . . . . . . . . . . . . Heaviest Build 136 | 12 20 20 49 49 106 106 106 106 106 106 121 123 132 132 132 136 103 108 104 104 108 Greatest Support 120 | 20 20 20 20 20 40 65 65 65 75 75 110 110 100 100 100 100 100 100 100 105 120 Greatest Overweight (x) 2 | . . . 2 2 2 1 1 1 1 1 1 1 1 1 1 1 1 1 1 1 1 Average Overweight (x) . | . . . . 2 2 . 1 1 . 1 1 . . 1 . . . 1 . . . Largest Inventory Capacity 20 | 8 10 10 20 20 20 20 20 20 20 20 20 20 20 20 20 20 20 20 20 20 20 Average Capacity 19 | 7 9 10 12 20 20 20 20 20 20 20 20 20 20 20 20 20 20 20 20 20 20 Most Carried 20 | 6 10 10 10 20 18 20 20 20 20 20 20 20 20 20 20 20 20 19 20 19 20 Average Carried 18 | 2 9 9 9 17 16 19 20 19 19 20 19 19 19 20 19 19 19 16 18 15 18 Final Capacity 20 | 8 10 10 20 20 20 20 20 20 20 20 20 20 20 20 20 20 20 20 20 20 20 Final Carried 20 | 6 10 10 10 19 18 20 20 20 20 20 19 20 20 20 20 20 18 15 16 19 19 Class Distribution -------------------- 31% | Scavenger-Tank 30% | Scavenger-Gunner 17% | Scavenger-Skirmisher 10% | Mutant 5% | Skirmisher Dominant Class ---------------- Mutant | -10/Materials Mutant | -10/Mines Mutant | -10/Exiles Mutant | -9/Mines Scavenger-Skirmisher | -8/Materials Scavenger-Skirmisher | -7/Factory Scavenger-Gunner | -7/Lower Caves Scavenger-Gunner | -7/Lower Caves Scavenger-Gunner | -7/Zion Scavenger-Gunner | -6/Proximity Caves Scavenger-Skirmisher | -6/Factory Scavenger-Skirmisher | -6/Extension Scavenger-Tank | -6/Cetus Commander-Tank | -6/Archives Scavenger-Tank | -6/Hub_04(d) Scavenger-Tank | -5/Factory Scavenger-Tank | -5/Upper Caves Scavenger-Tank | -5/Upper Caves Scavenger-Mutant | -5/Zhirov Scavenger-Tank | -4/Proximity Caves Scavenger-Gunner | -4/Factory Resources | -11 -10 -10 -10 -9 -8 -7 -7 -7 -7 -6 -6 -6 -6 -6 -6 -5 -5 -5 -5 -4 -4 ----------- Run | Yrd Mat Min Exi Min Mat Fac Low Low Zio Pro Fac Ext Cet Arc Hub Fac Upp Upp Zhi Pro Fac Matter Collected 6133 | 284 156 217 . 66 40 70 30 20 160 . 414 985 224 . 191 846 685 762 69 619 295 Remotely 190 | . . . . . . . . . . . . . . . . . . . . . 190 Salvage Created 5137 | 144 229 99 . 19 87 72 139 60 . 158 705 734 81 180 790 715 308 198 125 163 131 Parts 222 | 14 17 5 . . 3 4 5 6 . 11 34 24 4 1 33 34 10 . . 10 7 Haulers Intercepted 2 | . 1 . . . . . . . . . . . . . . 1 . . . . . Recyclers Shooed 12 | . 4 . . . . . . . . . 2 3 . . 1 2 . . . . . Parts Field Recycled . | . . . . . . . . . . . . . . . . . . . . . . Retrieved Matter . | . . . . . . . . . . . . . . . . . . . . . . Parts Self-Destructed 41 | . . . . . . . 2 9 . 11 . . . . . . 10 . . 9 . Prevented 1 | . . . . . . . . 1 . . . . . . . . . . . . . Kills | -11 -10 -10 -10 -9 -8 -7 -7 -7 -7 -6 -6 -6 -6 -6 -6 -5 -5 -5 -5 -4 -4 ------- Run | Yrd Mat Min Exi Min Mat Fac Low Low Zio Pro Fac Ext Cet Arc Hub Fac Upp Upp Zhi Pro Fac Combat Hostiles Destroyed 127 | . 4 . . 2 2 7 5 5 . 8 15 17 2 2 15 14 11 6 . 8 4 Guns 6 | . 4 . . 2 . . . . . . . . . . . . . . . . . Cannons 121 | . . . . . 2 7 5 5 . 8 15 17 2 2 15 14 11 6 . 8 4 Classes Destroyed 19 | 3 3 1 . 1 1 2 2 . . . 1 2 . . 1 . . . . 2 . Worker 6 | 1 . . . . . . . . . . 4 . . . 1 . . . . . . Builder 4 | . . 2 . . . . . . . . . 1 . . . . . . . . 1 Tunneler 3 | 3 . . . . . . . . . . . . . . . . . . . . . Hauler 2 | . 1 . . . . . . . . . . . . . . 1 . . . . . Recycler 6 | 1 . 1 . . . . . . . . . . . . 2 2 . . . . . Minesweeper 1 | . . . . . . . . . . . . . . . . . . . . 1 . Mechanic 1 | . . . . . . . . . . . 1 . . . . . . . . . . Operator 1 | . . . . . . . . . . . . 1 . . . . . . . . . Watcher 11 | . 1 . . . . . . . . . 7 . 1 . 1 1 . . . . . Swarmer 34 | . . . . . . 6 . 4 . 4 6 . . . 1 4 3 1 . 5 . Grunt 47 | . 4 . . . . . 3 . . 3 7 11 . 2 8 2 3 4 . . . Brawler 5 | . . . . . . . 1 . . . . 1 . . 1 . 2 . . . . Duelist 5 | . . . . . . . . . . . . 3 . . . 1 1 . . . . Sentry 11 | . . . . . 2 . . . . . 1 2 . . 2 1 2 1 . . . Hunter 8 | . . . . . . . 1 1 . . . . . . . 2 . . . 2 2 Programmer 11 | . . . . . . 1 . . . 1 1 . . . 2 4 . . . . 2 Heavy 1 | . . . . . . . . . . . . . . . 1 . . . . . . Behemoth 1 | . . . . . . . . . . . . . . . . . . . . 1 . Cetus Guard 2 | . . . . . . . . . . . . . 2 . . . . . . . . Enhanced Grunt 1 | . . . . . . . . . . . . . . 1 . . . . . . . Assembled 2 | . . . . 2 . . . . . . . . . . . . . . . . . Savage 1 | . . . . . . . . . . . . 1 . . . . . . . . . Best Kill Streak 10 | 4 2 1 . 1 1 6 3 4 . 7 5 4 3 2 10 4 6 2 . 5 3 Combat Bots Only 9 | . 2 . . 1 1 6 3 4 . 7 3 4 2 2 9 4 6 2 . 5 2 Max Kills in Single Turn 3 | 1 1 1 . 1 1 1 1 1 . 1 1 1 1 1 1 1 1 1 . 3 1 Gunslinging . | . . . . . . . . . . . . . . . . . . . . . . Exploded . | . . . . . . . . . . . . . . . . . . . . . . Melee . | . . . . . . . . . . . . . . . . . . . . . . Uniques/NPCs Destroyed . | . . . . . . . . . . . . . . . . . . . . . . Combat | -11 -10 -10 -10 -9 -8 -7 -7 -7 -7 -6 -6 -6 -6 -6 -6 -5 -5 -5 -5 -4 -4 -------- Run | Yrd Mat Min Exi Min Mat Fac Low Low Zio Pro Fac Ext Cet Arc Hub Fac Upp Upp Zhi Pro Fac Hostile Shots Fired 706 | . 16 . . 6 2 16 5 13 . 24 60 105 16 . 53 72 54 66 . 139 59 Missed 220 | . 1 . . 2 . 4 2 6 . 8 16 39 7 . 12 26 16 15 . 45 21 Damage Taken 7417 | . 226 . . 91 33 184 50 111 . 270 677 809 356 . 465 888 576 900 . 1256 525 Core 587 | . 59 . . . . 29 16 14 . 54 72 63 41 . . 18 18 111 . 75 17 Absorbed by Shields 1316 | . . . . . . . . . . . . 234 53 . . 126 204 129 . 381 189 Regen/Repaired (Parts) 295 | . . . . . . . . . 260 . . . . . . . . . . . 35 Core Remaining (%) 85 | 100 . . . 76 100 . . . . 83 . . . . 79 . . . . 77 . Volleys Fired 243 | 14 25 16 . 4 . . . . . . . 43 6 . . 40 27 21 . 30 17 Largest 3 | 2 2 2 . 2 . . . . . . . 3 3 . . 3 3 3 . 3 3 Hottest 170 | 70 70 40 . 40 . . . . . . . 144 144 . . 158 158 158 . 153 170 Shots Fired 778 | 28 50 32 . 8 3 12 17 7 . 19 46 120 24 7 48 91 83 58 . 76 49 Gun 118 | 28 50 32 . 8 . . . . . . . . . . . . . . . . . Cannon 660 | . . . . . 3 12 17 7 . 19 46 120 24 7 48 91 83 58 . 76 49 Launcher . | . . . . . . . . . . . . . . . . . . . . . . Special . | . . . . . . . . . . . . . . . . . . . . . . Kinetic 758 | 14 44 32 . 8 3 12 17 7 . 19 46 120 24 7 48 91 83 58 . 76 49 Thermal 20 | 14 6 . . . . . . . . . . . . . . . . . . . . Explosive . | . . . . . . . . . . . . . . . . . . . . . . Electromagnetic . | . . . . . . . . . . . . . . . . . . . . . . Robot Hit Streak 26 | 8 14 6 . 5 8 20 22 11 . 26 12 20 8 3 23 16 16 8 . 4 4 Robot Miss Streak 9 | 3 2 3 . 1 . . 1 . . 1 2 4 2 1 1 7 2 2 . 9 6 Penetration Max 1 | . . . . . . . . . . . . . . . . . . . . 1 . Secondary Targets . | . . . . . . . . . . . . . . . . . . . . . . Autonomous 202 | . . . . . 3 12 17 7 . 19 46 28 9 7 48 6 . . . . . Shots Hit Robots 503 | 16 38 21 . 5 3 12 14 7 . 18 38 71 18 5 44 54 54 32 . 32 21 Core Hits 228 | 8 14 8 . 6 2 2 4 4 . 6 27 34 8 4 17 30 20 10 . 17 7 Critical Kills 1 | . 1 . . . . . . . . . . . . . . . . . . . . Critical Parts Destroyed 2 | . 2 . . . . . . . . . . . . . . . . . . . . Critical Strikes 57 | 3 3 . . . 2 3 1 . . 1 4 8 . 1 7 5 4 3 . 7 5 Burn 3 | 3 . . . . . . . . . . . . . . . . . . . . . Destroy 3 | . 3 . . . . . . . . . . . . . . . . . . . . Blast 51 | . . . . . 2 3 1 . . 1 4 8 . 1 7 5 4 3 . 7 5 Melee Attacks . | . . . . . . . . . . . . . . . . . . . . . . Impact . | . . . . . . . . . . . . . . . . . . . . . . Slashing . | . . . . . . . . . . . . . . . . . . . . . . Piercing . | . . . . . . . . . . . . . . . . . . . . . . Sneak Attacks . | . . . . . . . . . . . . . . . . . . . . . . Combat Hostiles . | . . . . . . . . . . . . . . . . . . . . . . Follow-up Attacks . | . . . . . . . . . . . . . . . . . . . . . . Damage Inflicted 24646 | 171 441 224 . 64 262 1061 1112 552 . 1527 3455 3560 955 607 3817 2196 1638 1037 262 992 713 Guns 879 | 171 441 208 . 59 . . . . . . . . . . . . . . . . . Cannons 23065 | . . . . . 262 1061 1112 552 . 1527 3213 3449 955 607 3799 2148 1638 1037 . 992 713 Explosions . | . . . . . . . . . . . . . . . . . . . . . . Melee . | . . . . . . . . . . . . . . . . . . . . . . Ramming 702 | . . 16 . 5 . . . . . . 242 111 . . 18 48 . . 262 . . Kinetic 23794 | 69 393 208 . 59 262 1061 1112 552 . 1527 3213 3449 955 607 3799 2148 1638 1037 . 992 713 Thermal 150 | 102 48 . . . . . . . . . . . . . . . . . . . . Explosive . | . . . . . . . . . . . . . . . . . . . . . . Electromagnetic . | . . . . . . . . . . . . . . . . . . . . . . Impact . | . . . . . . . . . . . . . . . . . . . . . . Slashing . | . . . . . . . . . . . . . . . . . . . . . . Piercing . | . . . . . . . . . . . . . . . . . . . . . . Highest Corruption 10 | . . . . . 6 . . . . . 2 2 2 2 5 2 2 2 2 2 10 Average Corruption 2 | . . . . . 4 . . . . . 1 2 2 2 3 1 2 2 2 2 9 Corruption Purged . | . . . . . . . . . . . . . . . . . . . . . . Corruption Blocked . | . . . . . . . . . . . . . . . . . . . . . . Effects 124 | . . . . . . . . . . . 5 23 3 . 18 13 17 25 4 8 8 Message Errors 34 | . . . . . . . . . . . 1 6 1 . 4 4 8 6 1 1 2 Matter Fused 31 | . . . . . . . . . . . 1 5 1 . 5 3 2 7 1 5 1 Heat Flow Errors 16 | . . . . . . . . . . . . 2 . . 3 3 1 2 1 1 3 Energy Discharges 11 | . . . . . . . . . . . 2 1 1 . 1 . 3 2 . . 1 Parts Rejected 1 | . . . . . . . . . . . . . . . 1 . . . . . . Parts Fused 1 | . . . . . . . . . . . . . . . . . 1 . . . . Data Loss (minor) 17 | . . . . . . . . . . . . 6 . . 4 1 . 3 1 1 1 Data Loss (major) 6 | . . . . . . . . . . . 1 3 . . . 2 . . . . . Misfires 6 | . . . . . . . . . . . . . . . . . 2 4 . . . Alerts 1 | . . . . . . . . . . . . . . . . . . 1 . . . Overload Shots . | . . . . . . . . . . . . . . . . . . . . . . Overflow Damage 2104 | . . . . . 22 332 54 28 . 312 394 177 55 74 486 86 6 21 32 13 12 Projectiles 2064 | . . . . . 22 332 54 28 . 312 394 169 55 74 486 86 6 21 . 13 12 Explosions . | . . . . . . . . . . . . . . . . . . . . . . Melee 40 | . . . . . . . . . . . . 8 . . . . . . 32 . . Knockbacks 121 | . . 1 . 2 . 5 2 3 . 9 15 17 . 5 9 19 7 6 . 9 12 Impact 13 | . . 1 . 1 . . . . . . 5 4 . . . 2 . . . . . Kinetic 98 | . . . . . . 4 2 2 . 9 9 13 . 3 8 16 7 5 . 9 11 Secondary 10 | . . . . 1 . 1 . 1 . . 1 . . 2 1 1 . 1 . . 1 Self-Inflicted Damage 38 | . . . . . . . . . . . 38 . . . . . . . . . . Shots . | . . . . . . . . . . . . . . . . . . . . . . Rammed . | . . . . . . . . . . . . . . . . . . . . . . Targets Rammed 57 | . . 3 . 1 . . . . . . 19 7 . . 3 6 . . 18 . . Kicked 57 | . . 3 . 1 . . . . . . 19 7 . . 3 6 . . 18 . . Crushed . | . . . . . . . . . . . . . . . . . . . . . . Highest Temperature 414 | 110 80 . . 9 . . . . 374 . . 368 317 . 264 414 402 327 144 222 163 Average Temperature 114 | 48 19 . . 9 . . . . 193 . . 150 175 . 114 107 144 137 81 51 45 Received Heat Transfer 1167 | . 132 . . 18 9 . 18 . . 54 84 157 54 . 111 36 158 306 . 30 . Effects 6 | . . . . . . . . . . . . 2 . . . . 3 1 . . . Shutdowns 1 | . . . . . . . . . . . . . . . . . 1 . . . . Energy Bleed 2 | . . . . . . . . . . . . 2 . . . . . . . . . Short Circuit 1 | . . . . . . . . . . . . . . . . . . 1 . . . Damage (minor) 2 | . . . . . . . . . . . . . . . . . 2 . . . . Siege Activations . | . . . . . . . . . . . . . . . . . . . . . . Robots Corrupted 4 | . . . . . . . . . . . . 1 . . . . . . 3 . . Combat Hostiles 1 | . . . . . . . . . . . . . . . . . . . 1 . . Parts Fried 5 | . . . . . . . . . . . . 5 . . . . . . . . . Impact Corruptions 10 | . . . . . . 1 . 1 . . . 2 . . . . . . 6 . . Robots Melted . | . . . . . . . . . . . . . . . . . . . . . . Combat Hostiles . | . . . . . . . . . . . . . . . . . . . . . . Parts Melted 2 | 2 . . . . . . . . . . . . . . . . . . . . . Heat Transferred 666 | 518 148 . . . . . . . . . . . . . . . . . . . . Parts Sabotaged . | . . . . . . . . . . . . . . . . . . . . . . Parts Stolen . | . . . . . . . . . . . . . . . . . . . . . . Parts Stripped . | . . . . . . . . . . . . . . . . . . . . . . Power Chain Reactions . | . . . . . . . . . . . . . . . . . . . . . . Alert | -11 -10 -10 -10 -9 -8 -7 -7 -7 -7 -6 -6 -6 -6 -6 -6 -5 -5 -5 -5 -4 -4 ------- Run | Yrd Mat Min Exi Min Mat Fac Low Low Zio Pro Fac Ext Cet Arc Hub Fac Upp Upp Zhi Pro Fac Peak Influence 747 | 25 167 74 . 95 153 125 . . . . 266 747 676 488 566 401 . . . . 182 Initial 417 | . 16 64 . . . . . . . . . 88 417 270 170 220 . . . . . Average 190 | 13 83 55 . 43 48 36 . . . . 161 365 574 347 377 126 . . . . 44 Maximum Alert Level 3 | . . . . . . . . . . . 1 3 2 2 2 2 . . . . . Low Security (%) 59 | 100 100 100 . 100 100 100 . . . . 51 8 . . 24 73 . . . . 100 Level 1 25 | . . . . . . . . . . . 48 63 . 65 9 24 . . . . . Level 2 14 | . . . . . . . . . . . . 24 100 34 66 2 . . . . . Level 3 . | . . . . . . . . . . . . 2 . . . . . . . . . Level 4 . | . . . . . . . . . . . . . . . . . . . . . . Level 5 . | . . . . . . . . . . . . . . . . . . . . . . High Security . | . . . . . . . . . . . . . . . . . . . . . . Max Security . | . . . . . . . . . . . . . . . . . . . . . . Squads Dispatched 26 | . . . . 1 . 2 . . . . 2 4 . . 9 5 . . . . 3 Investigation 4 | . . . . . . . . . . . 1 1 . . . 1 . . . . 1 Extermination 10 | . . . . . . 2 . . . . 1 . . . 3 2 . . . . 2 Reinforcement 6 | . . . . . . . . . . . . 1 . . 3 2 . . . . . Assault 3 | . . . . 1 . . . . . . . 2 . . . . . . . . . Garrison 3 | . . . . . . . . . . . . . . . 3 . . . . . . Intercept . | . . . . . . . . . . . . . . . . . . . . . . Searches Triggered . | . . . . . . . . . . . . . . . . . . . . . . Construction Impeded 1 | . . . . . . . . . . . . . . . . 1 . . . . . Haulers Reinforced . | . . . . . . . . . . . . . . . . . . . . . . Active Scanning Responses . | . . . . . . . . . . . . . . . . . . . . . . Cargo Convoy Interrupts . | . . . . . . . . . . . . . . . . . . . . . . Stealth | -11 -10 -10 -10 -9 -8 -7 -7 -7 -7 -6 -6 -6 -6 -6 -6 -5 -5 -5 -5 -4 -4 --------- Run | Yrd Mat Min Exi Min Mat Fac Low Low Zio Pro Fac Ext Cet Arc Hub Fac Upp Upp Zhi Pro Fac Distress Signals 14 | . 1 . . 1 1 1 . . . . . 3 2 1 2 2 . . . . . Communications Jammed 51 | . . . . . . . . . . . . 45 . . . . . . . . 6 Distress Signals 51 | . . . . . . . . . . . . 45 . . . . . . . . 6 Times Spotted 206 | . 9 . . 6 3 10 5 5 . 8 23 38 10 10 22 23 11 6 . 11 6 Peak Tracking Total 9 | . 3 . . 2 2 4 3 4 . 3 2 6 5 9 6 4 7 5 . 5 2 Tactical Retreats 10 | . 1 . . 1 . 1 . . . . . 2 . . . 3 . 1 . 1 . Traps | -11 -10 -10 -10 -9 -8 -7 -7 -7 -7 -6 -6 -6 -6 -6 -6 -5 -5 -5 -5 -4 -4 ------- Run | Yrd Mat Min Exi Min Mat Fac Low Low Zio Pro Fac Ext Cet Arc Hub Fac Upp Upp Zhi Pro Fac Traps Triggered 12 | . . . . . 3 1 . . . . 1 1 . . 3 3 . . . . . Indirectly . | . . . . . . . . . . . . . . . . . . . . . . Trap Hack Attempts . | . . . . . . . . . . . . . . . . . . . . . . Triggered . | . . . . . . . . . . . . . . . . . . . . . . Disarmed . | . . . . . . . . . . . . . . . . . . . . . . Reprogrammed . | . . . . . . . . . . . . . . . . . . . . . . Reused . | . . . . . . . . . . . . . . . . . . . . . . Traps Extracted . | . . . . . . . . . . . . . . . . . . . . . . Installed . | . . . . . . . . . . . . . . . . . . . . . . Triggered 3 | . . . . . . . 1 2 . . . . . . . . . . . . . Most Traps Carried 4 | . . . . . . . . . . . . . . . . . . . . 4 4 Machines | -11 -10 -10 -10 -9 -8 -7 -7 -7 -7 -6 -6 -6 -6 -6 -6 -5 -5 -5 -5 -4 -4 ---------- Run | Yrd Mat Min Exi Min Mat Fac Low Low Zio Pro Fac Ext Cet Arc Hub Fac Upp Upp Zhi Pro Fac Machines Disabled 16 | . . . . . . . . . . . 1 5 . 1 4 1 . . . . 4 Max in Single Turn 1 | . . . . . . . . . . . 1 1 . . 1 1 . . . . 1 Garrison Access 3 | . . . . . . . . . . . 1 . . . . 2 . . . . . Network Hub 1 | . . . . . . . . . . . . . . . 1 . . . . . . Machines Repaired . | . . . . . . . . . . . . . . . . . . . . . . Machines Dismantled 2 | . . . . . . . . . . . . 1 . . 1 . . . . . . Machines Sabotaged . | . . . . . . . . . . . . . . . . . . . . . . Overloaded Fab Kills . | . . . . . . . . . . . . . . . . . . . . . . Hacking | -11 -10 -10 -10 -9 -8 -7 -7 -7 -7 -6 -6 -6 -6 -6 -6 -5 -5 -5 -5 -4 -4 --------- Run | Yrd Mat Min Exi Min Mat Fac Low Low Zio Pro Fac Ext Cet Arc Hub Fac Upp Upp Zhi Pro Fac Machines Accessed 58 | . 1 . 2 . 3 2 . . . . 3 17 3 1 6 9 . 1 8 . 2 Terminals 36 | . 1 . . . 3 2 . . . . 1 16 3 . 6 4 . . . . . Fabricators 1 | . . . . . . . . . . . . . . . . 1 . . . . . Repair Stations 3 | . . . . . . . . . . . . . . . . 2 . . . . 1 Recycling Units 2 | . . . . . . . . . . . 1 1 . . . . . . . . . Scanalyzers . | . . . . . . . . . . . . . . . . . . . . . . Garrison Access 4 | . . . . . . . . . . . 1 . . . . 2 . . . . 1 Total Hacks 162 | . 2 . 3 . 6 6 . . . . 5 32 8 25 13 26 . 1 29 . 6 Successful 98 | . 1 . 3 . 3 3 . . . . 2 15 2 25 4 8 . 1 29 . 2 Failed 64 | . 1 . . . 3 3 . . . . 3 17 6 . 9 18 . . . . 4 Catastrophic 16 | . . . . . 1 1 . . . . 1 6 1 . 2 4 . . . . . Database Lockouts . | . . . . . . . . . . . . . . . . . . . . . . Manual 59 | . 2 . 1 . 6 3 . . . . 5 12 1 . 13 14 . . . . 2 Terminals 80 | . 2 . . . 6 6 . . . . 2 30 8 . 13 13 . . . . . Fabricators 2 | . . . . . . . . . . . . . . . . 2 . . . . . Repair Stations 10 | . . . . . . . . . . . . . . . . 6 . . . . 4 Recycling Units 4 | . . . . . . . . . . . 2 2 . . . . . . . . . Scanalyzers . | . . . . . . . . . . . . . . . . . . . . . . Garrison Access 8 | . . . . . . . . . . . 1 . . . . 5 . . . . 2 Terminal Hacks 80 | . 1 . 3 . 3 3 . . . . . 11 2 25 1 1 . 1 29 . . Record 47 | . . . 2 . . 1 . . . . . 1 1 25 . . . . 17 . . Part Schematic 5 | . 1 . . . . . . . . . . . . . . . . . 4 . . Robot Analysis 6 | . . . . . 2 . . . . . . . . . . . . . 4 . . Prototype ID Bank 4 | . . . . . . . . . . . . . . . . . . . 4 . . Open Door 12 | . . . . . . . . . . . . 10 1 . . . . 1 . . . Branch Access Points 2 | . . . . . . 1 . . . . . . . . . 1 . . . . . Unreport Threat 1 | . . . . . . . . . . . . . . . 1 . . . . . . Locate Traps 1 | . . . . . . 1 . . . . . . . . . . . . . . . Registered Components 1 | . . . . . 1 . . . . . . . . . . . . . . . . Derelict Proto ID Bank 1 | . . . 1 . . . . . . . . . . . . . . . . . . Fabricator Hacks 1 | . . . . . . . . . . . . . . . . 1 . . . . . Network Status 1 | . . . . . . . . . . . . . . . . 1 . . . . . Repair Station Hacks 3 | . . . . . . . . . . . . . . . . 1 . . . . 2 Scan Component 2 | . . . . . . . . . . . . . . . . 1 . . . . 1 Repair 1 | . . . . . . . . . . . . . . . . . . . . . 1 Recycling Unit Hacks . | . . . . . . . . . . . . . . . . . . . . . . Scanalyzer . | . . . . . . . . . . . . . . . . . . . . . . Garrison Access Hacks 1 | . . . . . . . . . . . . . . . . 1 . . . . . Seal Access 1 | . . . . . . . . . . . . . . . . 1 . . . . . Unauthorized Hacks 13 | . . . . . . . . . . . 2 4 . . 3 4 . . . . . Terminals 10 | . . . . . . . . . . . 1 3 . . 3 3 . . . . . Botnet 8 | . . . . . . . . . . . 1 3 . . 3 1 . . . . . Skim 2 | . . . . . . . . . . . . . . . . 2 . . . . . Fabricators . | . . . . . . . . . . . . . . . . . . . . . . Repair Stations . | . . . . . . . . . . . . . . . . . . . . . . Recycling Units 1 | . . . . . . . . . . . . 1 . . . . . . . . . Reject 1 | . . . . . . . . . . . . 1 . . . . . . . . . Scanalyzers . | . . . . . . . . . . . . . . . . . . . . . . Garrison Access 2 | . . . . . . . . . . . 1 . . . . 1 . . . . . Jam 2 | . . . . . . . . . . . 1 . . . . 1 . . . . . Data Cores Recovered . | . . . . . . . . . . . . . . . . . . . . . . Used . | . . . . . . . . . . . . . . . . . . . . . . Hacking Detections 37 | . 1 . . . 3 2 . . . . 2 12 2 . 6 7 . . . . 2 Full Trace Events 2 | . . . . . . . . . . . . 1 . . . . . . . . 1 Feedback Events . | . . . . . . . . . . . . . . . . . . . . . . Feedback Blocked . | . . . . . . . . . . . . . . . . . . . . . . Robot Schematics Acquired 3 | . . . . . . . . . 3 . . . . . . . . . . . . Robots Built . | . . . . . . . . . . . . . . . . . . . . . . Authchips . | . . . . . . . . . . . . . . . . . . . . . . Time . | . . . . . . . . . . . . . . . . . . . . . . Total Robot Build Rating . | . . . . . . . . . . . . . . . . . . . . . . Part Schematics Acquired 20 | . 1 . . . . . . . 15 . . . . . . . . . 4 . . Parts Built . | . . . . . . . . . . . . . . . . . . . . . . Authchips . | . . . . . . . . . . . . . . . . . . . . . . Time . | . . . . . . . . . . . . . . . . . . . . . . Total Part Build Rating . | . . . . . . . . . . . . . . . . . . . . . . Parts Repaired 1 | . . . . . . . . . . . . . . . . . . . . . 1 Time 78 | . . . . . . . . . . . . . . . . . . . . . 78 Parts Recycled . | . . . . . . . . . . . . . . . . . . . . . . Recycled Matter . | . . . . . . . . . . . . . . . . . . . . . . Retrieved Matter . | . . . . . . . . . . . . . . . . . . . . . . Retrieved Components . | . . . . . . . . . . . . . . . . . . . . . . Parts Scanalyzed . | . . . . . . . . . . . . . . . . . . . . . . Part Schematics Acquired . | . . . . . . . . . . . . . . . . . . . . . . Parts Damaged . | . . . . . . . . . . . . . . . . . . . . . . Bothacking | -11 -10 -10 -10 -9 -8 -7 -7 -7 -7 -6 -6 -6 -6 -6 -6 -5 -5 -5 -5 -4 -4 ------------ Run | Yrd Mat Min Exi Min Mat Fac Low Low Zio Pro Fac Ext Cet Arc Hub Fac Upp Upp Zhi Pro Fac Used RIF Installer . | . . . . . . . . . . . . . . . . . . . . . . Robots Hacked . | . . . . . . . . . . . . . . . . . . . . . . Non-combat . | . . . . . . . . . . . . . . . . . . . . . . Combat . | . . . . . . . . . . . . . . . . . . . . . . Robot Hacks Applied . | . . . . . . . . . . . . . . . . . . . . . . Relay Couplers Released . | . . . . . . . . . . . . . . . . . . . . . . Fabnet Peak Effective % . | . . . . . . . . . . . . . . . . . . . . . . Robots Rewired 6 | . . . . . . . . . . . . 6 . . . . . . . . . Allies Hacked . | . . . . . . . . . . . . . . . . . . . . . . Hacks Repelled . | . . . . . . . . . . . . . . . . . . . . . . Allies | -11 -10 -10 -10 -9 -8 -7 -7 -7 -7 -6 -6 -6 -6 -6 -6 -5 -5 -5 -5 -4 -4 -------- Run | Yrd Mat Min Exi Min Mat Fac Low Low Zio Pro Fac Ext Cet Arc Hub Fac Upp Upp Zhi Pro Fac Total Allies 28 | . . 3 . 1 . . . . . . . 19 5 . . . . . . . . Largest Group 15 | . . 3 3 3 2 2 . . . . . 14 15 13 3 . . . . . . Highest-Rated Group 884 | . . 40 40 47 47 47 . . . . . 505 884 822 288 . . . . . . Highest-Rated Ally 159 | . . 16 16 31 31 31 . . . . . 159 159 152 96 . . . . . . Total Orders . | . . . . . . . . . . . . . . . . . . . . . . Ally Attacks 301 | . . . . 30 8 7 . . . . . 118 65 29 44 . . . . . . Total Damage 7478 | . . . . 252 131 92 . . . . . 1925 1596 865 2617 . . . . . . Kills 45 | . . . . 6 1 1 . . . . . 14 7 6 10 . . . . . . Allies Corrupted 1 | . . . . . . . . . . . . 1 . . . . . . . . . Allies Melted . | . . . . . . . . . . . . . . . . . . . . . . Intel | -11 -10 -10 -10 -9 -8 -7 -7 -7 -7 -6 -6 -6 -6 -6 -6 -5 -5 -5 -5 -4 -4 ------- Run | Yrd Mat Min Exi Min Mat Fac Low Low Zio Pro Fac Ext Cet Arc Hub Fac Upp Upp Zhi Pro Fac Robot Analysis Total 6 | . . . . . 2 . . . . . . . . . . . . . 4 . . Derelict Logs Recovered 9 | . . . . 1 . . 2 1 2 1 . . . . . . 1 1 . . . Drone Launches . | . . . . . . . . . . . . . . . . . . . . . . Drone Recoveries . | . . . . . . . . . . . . . . . . . . . . . . Exploration | -11 -10 -10 -10 -9 -8 -7 -7 -7 -7 -6 -6 -6 -6 -6 -6 -5 -5 -5 -5 -4 -4 ------------- Run | Yrd Mat Min Exi Min Mat Fac Low Low Zio Pro Fac Ext Cet Arc Hub Fac Upp Upp Zhi Pro Fac Turns Passed 20367 | 171 396 475 325 910 456 503 1598 834 2345 761 1628 1881 396 90 1072 2534 866 1504 282 817 523 Spaces Moved 10323 | 96 208 340 237 328 169 250 818 428 1207 384 616 1076 241 44 483 1217 520 735 174 478 274 Core 2 | 2 . . . . . . . . . . . . . . . . . . . . . Treads . | . . . . . . . . . . . . . . . . . . . . . . Legs 10321 | 94 208 340 237 328 169 250 818 428 1207 384 616 1076 241 44 483 1217 520 735 174 478 274 Wheels . | . . . . . . . . . . . . . . . . . . . . . . Hover . | . . . . . . . . . . . . . . . . . . . . . . Flight . | . . . . . . . . . . . . . . . . . . . . . . Fastest Speed 50 | 50 120 120 120 260 260 120 190 190 120 193 193 123 123 193 123 120 120 190 120 123 123 Average Speed 171 | 118 120 120 136 260 260 189 190 190 191 193 194 137 144 193 192 160 142 190 141 147 123 Slowest Speed 260 | 120 120 120 260 260 260 190 190 190 193 193 196 196 193 193 193 191 190 190 190 190 194 Overloaded Moves . | . . . . . . . . . . . . . . . . . . . . . . Propulsion Burnouts . | . . . . . . . . . . . . . . . . . . . . . . Robots Hopped . | . . . . . . . . . . . . . . . . . . . . . . Cave-ins Triggered . | . . . . . . . . . . . . . . . . . . . . . . Exploration Rate (%) 51 | 5 33 56 65 61 23 10 82 63 85 55 20 90 78 71 40 24 71 65 62 61 6 Regions Visited 21 Branch Regions 15 Pre-discovered Areas 7 | . . . . . . . 1 . 2 1 . . . . . . . . 3 . . Known Exits Taken 3 | . . . . . . 1 . . . . 1 . . . . 1 . . . . . Unknown Exits Taken 18 | 1 1 1 1 1 1 . 1 1 1 1 . 1 1 1 1 . 1 1 1 1 . Scrap Searched 17 | . . 1 . 2 . . 2 2 4 1 . . . . . . 1 2 . 2 . Spaces Dug 9 | . . . . . . . . . . . . . . . . 9 . . . . . Terrain Destroyed 152 | . . . . . . . 4 . . 1 9 16 2 . 3 30 19 17 . 36 15 Melee . | . . . . . . . . . . . . . . . . . . . . . . Projectile 151 | . . . . . . . 4 . . 1 8 16 2 . 3 30 19 17 . 36 15 AOE . | . . . . . . . . . . . . . . . . . . . . . . Terrain Rammed 1 | . . . . . . . . . . . 1 . . . . . . . . . . Walls Destroyed 1 | . . . . . . . . . . . 1 . . . . . . . . . . Machines Disabled . | . . . . . . . . . . . . . . . . . . . . . . Actions | -11 -10 -10 -10 -9 -8 -7 -7 -7 -7 -6 -6 -6 -6 -6 -6 -5 -5 -5 -5 -4 -4 --------- Run | Yrd Mat Min Exi Min Mat Fac Low Low Zio Pro Fac Ext Cet Arc Hub Fac Upp Upp Zhi Pro Fac Total 12477 | 124 307 377 242 377 187 281 864 449 1236 404 1033 1393 277 50 615 1720 586 796 207 529 423 Wait 1384 | 2 58 16 . 27 11 11 39 16 . 21 367 131 15 7 96 397 30 25 . 2 113 Move 10302 | 95 207 339 236 327 168 249 817 427 1206 383 615 1075 240 43 482 1216 519 734 173 477 274 Hop . | . . . . . . . . . . . . . . . . . . . . . . Pick Up 98 | 6 7 1 1 10 2 7 1 2 3 . 6 14 2 . 2 13 2 4 1 10 4 Fast Attach 54 | 7 . . . . 1 3 . . 7 . 5 2 2 . 10 10 . . 2 2 3 Attach 44 | . . . . . 3 2 . . . . 3 4 1 . 3 7 1 6 4 6 4 Detach 18 | . . . . . 2 . . . 1 . 1 . 3 . 1 1 1 . 4 . 4 Swap 85 | . 4 1 1 4 . 2 3 2 9 . 5 16 4 . 5 17 2 5 3 1 1 Drop 107 | . 6 1 4 4 . 7 4 2 10 . 11 21 4 . 10 13 4 1 1 1 3 Fire 243 | 14 25 16 . 4 . . . . . . . 43 6 . . 40 27 21 . 30 17 Melee . | . . . . . . . . . . . . . . . . . . . . . . Ram 1 | . . . . . . . . . . . 1 . . . . . . . . . . Kick 57 | . . 3 . 1 . . . . . . 19 7 . . 3 6 . . 18 . . Crush . | . . . . . . . . . . . . . . . . . . . . . . Escape Stasis 4 | . . . . . . . . . . . . 4 . . . . . . . . . Rewire 69 | . . . . . . . . . . . . 68 . . . . . . 1 . . Trap . | . . . . . . . . . . . . . . . . . . . . . . Miscellaneous 11 | . . . . . . . . . . . . 8 . . 3 . . . . . . Route ------- -11/Scrapyard -10/Materials (discovered 2 exits: [*Mat] / [*Min]) -10/Mines (discovered 2 exits: [*Mat] / *Exi) -10/Exiles -9/Mines -8/Materials -7/Factory (discovered 2 exits: *Low x2) -7/Lower Caves -7/Lower Caves -7/Zion -6/Proximity Caves -6/Factory -6/Extension (discovered 3 exits: *Fac x2 / *Cet) -6/Cetus (discovered 2 exits: *Fac / *Arc) -6/Archives -6/Hub_04(d) -5/Factory (discovered 2 exits: *Upp x2) -5/Upper Caves -5/Upper Caves -5/Zhirov -4/Proximity Caves -4/Factory History --------- Turn | Location | Event 9 | -11/Scrapyard | Discovered new exit (range 16) 172 | -11/Scrapyard | Entered Materials 283 | -10/Materials | Discovered new exit (range 15) 300 | -10/Materials | Build established: Mutant 539 | -10/Materials | Discovered new exit (range 12) 568 | -10/Materials | Entered Mines 569 | -10/Mines | Met a Derelict bent on vengeance 708 | -10/Mines | Discovered new exit (range 7) 915 | -10/Mines | Assisted by bots powering up and referring to "LRC-V3" 1032 | -10/Mines | Deemed a non-threat by the Exiles lab entrance 1032 | -10/Mines | Discovered new exit (range 5) 1043 | -10/Mines | Entered Exiles 1043 | -10/Exiles | Accompanied by 3 allies 1073 | -10/Exiles | Met 8R-AWN 1090 | -10/Exiles | Met EX-HEX 1126 | -10/Exiles | Met EX-BIN 1145 | -10/Exiles | Aligned with FarCom system 1147 | -10/Exiles | Given EX-Vault access code 1175 | -10/Exiles | Opened EX-Vault 1182 | -10/Exiles | Found AWS/Autocannon 1207 | -10/Exiles | Warned to stay clear of 0b10 Research branches 1227 | -10/Exiles | Exiles lab attacked by MAIN.C 1348 | -10/Exiles | Discovered new exit (range 10) 1368 | -10/Exiles | Left Exiles lab with AWS/Autocannon 1368 | -10/Exiles | Entered Mines 1368 | -9/Mines | Accompanied by 3 allies 1777 | -9/Mines | Assembled infested the area 2016 | -9/Mines | Learned Materials stockpile data 2021 | -9/Mines | Found a hidden stash of uninstalled traps 2240 | -9/Mines | Discovered new exit (range 10) 2248 | -9/Mines | Met a Derelict testing a Signal Generator 2271 | -9/Mines | Found Signal Generator 2278 | -9/Mines | Entered Materials 2278 | -8/Materials | Accompanied by 2 allies 2278 | -8/Materials | Evolved 4 slots: Propulsion x2, Utility x1, Weapon x1 2579 | -8/Materials | Build established: Scavenger-Skirmisher 2708 | -8/Materials | Discovered new exit (range 5) 2734 | -8/Materials | Entered Factory 2734 | -7/Factory | Accompanied by 2 allies 2734 | -7/Factory | Evolved 2 slots: Propulsion x2 2873 | -7/Factory | Identified exit to Lower Caves 3237 | -7/Factory | Entered Lower Caves 3529 | -7/Lower Caves | Build established: Scavenger-Gunner 3638 | -7/Lower Caves | Learned Factory security intel 3795 | -7/Lower Caves | Learned location of Zion (-7) 4787 | -7/Lower Caves | Discovered new exit (range 13) 4788 | -7/Lower Caves | Encountered a Warlord checkpoint 4835 | -7/Lower Caves | Entered another Lower Caves area 5567 | -7/Lower Caves | Discovered new exit (range 13) 5583 | -7/Lower Caves | Encountered a Warlord checkpoint 5601 | -7/Lower Caves | Learned Factory terminal intel 5669 | -7/Lower Caves | Entered Zion 5824 | -7/Zion | Discovered new exit (range 9) 5895 | -7/Zion | Visited the Megawrench Repair Shop 6779 | -7/Zion | Learned 8 Factory zone layouts 6913 | -7/Zion | Learned location of Quarantine (-2) 7063 | -7/Zion | Learned location of Testing (-3) 7073 | -7/Zion | Found Prototype Device 7073 | -7/Zion | Identified Mobile Refinery Mk. CCLXVII 7356 | -7/Zion | Rebuked by Imprinter 7564 | -7/Zion | Found Prototype Launcher 7564 | -7/Zion | Identified Rocket Array 7831 | -7/Zion | Megawrench repaired 9 parts 8014 | -7/Zion | Entered Proximity Caves 8242 | -6/Proximity Caves | Destroyed 7 combat bots 8753 | -6/Proximity Caves | Discovered new exit (range 12) 8775 | -6/Proximity Caves | Entered Factory 8775 | -6/Factory | Evolved 2 slots: Utility x2 8776 | -6/Factory | Identified exit to Extension 8779 | -6/Factory | Loaded intel: 28 terminal locations 9091 | -6/Factory | Build established: Scavenger-Skirmisher 10051 | -6/Factory | Build established: Skirmisher 10403 | -6/Factory | Entered Extension 10946 | -6/Extension | Rescued a captive Derelict 10947 | -6/Extension | Rescued a captive Derelict 11003 | -6/Extension | Rescued a captive Derelict 11137 | -6/Extension | Build established: Scavenger-Skirmisher 11196 | -6/Extension | Rescued a captive Derelict 11196 | -6/Extension | Rescued a captive Derelict 11324 | -6/Extension | Rescued a captive Derelict 11325 | -6/Extension | Rescued a captive Derelict 11507 | -6/Extension | Spotted B-75 Beast 11513 | -6/Extension | Allies destroyed B-75 Beast 11517 | -6/Extension | Spotted B-75 Beast 11526 | -6/Extension | Allies destroyed B-75 Beast 11562 | -6/Extension | Discovered new exit (range 3) 11664 | -6/Extension | Discovered new exit (range 16) 11666 | -6/Extension | Discovered new exit (range 15) 11720 | -6/Extension | Rescued a captive Derelict 11721 | -6/Extension | Rescued a captive Derelict 11803 | -6/Extension | First assault squad dispatched 11835 | -6/Extension | Rescued a captive Derelict 11877 | -6/Extension | Rescued A7 11885 | -6/Extension | Lost 4 allies 11929 | -6/Extension | Rescued a captive Derelict 11930 | -6/Extension | Rescued a captive Derelict 12022 | -6/Extension | Rescued a captive Derelict 12053 | -6/Extension | Disrupted transfer network 12284 | -6/Extension | Entered Cetus 12284 | -6/Cetus | Accompanied by 12 allies (A7) 12289 | -6/Cetus | Acquired a Cetus Manufacturing Module code from A7 12302 | -6/Cetus | Spotted Cetus Guard 12302 | -6/Cetus | Spotted Cetus Guard 12305 | -6/Cetus | Spotted Cetus Guard 12306 | -6/Cetus | Spotted Cetus Guard 12311 | -6/Cetus | Allies destroyed Cetus Guard 12322 | -6/Cetus | Allies destroyed Cetus Guard 12330 | -6/Cetus | Allies destroyed Cetus Guard 12331 | -6/Cetus | Allies destroyed Cetus Guard 12406 | -6/Cetus | Started Cetus Manufacturing Module 12416 | -6/Cetus | Escorted A7 to Cetus Mainframe 12431 | -6/Cetus | Manufactured an Enhanced Grunt 12456 | -6/Cetus | Manufactured an Enhanced Grunt 12481 | -6/Cetus | Manufactured an Enhanced Grunt 12506 | -6/Cetus | Manufactured an Enhanced Grunt 12513 | -6/Cetus | Discovered new exit (range 15) 12531 | -6/Cetus | Manufactured an Enhanced Grunt 12550 | -6/Cetus | Spotted Cetus Guard 12550 | -6/Cetus | Spotted Cetus Guard 12552 | -6/Cetus | Spotted Cetus Guard 12553 | -6/Cetus | Spotted Cetus Guard 12556 | -6/Cetus | Destroyed Cetus Guard 12558 | -6/Cetus | Allies destroyed Cetus Guard 12564 | -6/Cetus | Allies destroyed Cetus Guard 12564 | -6/Cetus | Destroyed Cetus Guard 12597 | -6/Cetus | Discovered new exit (range 15) 12607 | -6/Cetus | Met Revision 17 12680 | -6/Cetus | Entered Archives 12680 | -6/Archives | Accompanied by 13 allies (A7) 12685 | -6/Archives | Received a hacking code to weaken MAIN.C 12709 | -6/Archives | Met Zhirov 12715 | -6/Archives | Reinforcements dispatched to Archives 12733 | -6/Archives | Read partially decrypted archive contents 12740 | -6/Archives | Discovered new exit (range 13) 12760 | -6/Archives | Reinforcements dispatched to Archives 12770 | -6/Archives | Entered Hub_04(d) 12770 | -6/Hub_04(d) | Accompanied by 3 allies 12771 | -6/Hub_04(d) | Lost 6 allies 13036 | -6/Hub_04(d) | Garrison activated, responded to threat 13082 | -6/Hub_04(d) | Spotted B-75 Beast 13094 | -6/Hub_04(d) | Allies destroyed B-75 Beast 13237 | -6/Hub_04(d) | Destroyed 9 combat bots 13413 | -6/Hub_04(d) | Found Launcher Loader 13454 | -6/Hub_04(d) | Discovered new exit (range 3) 13479 | -6/Hub_04(d) | Build established: Scavenger-Tank 13621 | -6/Hub_04(d) | Network Hub disabled 13842 | -6/Hub_04(d) | Entered Factory 13842 | -5/Factory | Evolved 2 slots: Utility x2 15730 | -5/Factory | Identified exit to Upper Caves 16376 | -5/Factory | Entered Upper Caves 16384 | -5/Upper Caves | Attracted the attention of an 0b10 checkpoint 16763 | -5/Upper Caves | Learned Factory garrison access intel 16818 | -5/Upper Caves | Attracted the attention of an 0b10 outpost 17215 | -5/Upper Caves | Discovered new exit (range 5) 17242 | -5/Upper Caves | Entered another Upper Caves area 17775 | -5/Upper Caves | Discovered new exit (range 16) 17819 | -5/Upper Caves | Attracted the attention of an 0b10 checkpoint 17887 | -5/Upper Caves | Lost 6 parts (1p2n1u2w) 17974 | -5/Upper Caves | Learned Factory security intel 18746 | -5/Upper Caves | Entered Zhirov 18746 | -5/Zhirov | Discovered new exit (range 3) 18797 | -5/Zhirov | Learned location of Command (-1) 18839 | -5/Zhirov | Found Alien Artifact 18862 | -5/Zhirov | Found Alien Artifact 18862 | -5/Zhirov | Identified Integrated Reactor 18862 | -5/Zhirov | Installed Integrated Reactor, increased core energy generation (+10) 19028 | -5/Zhirov | Entered Proximity Caves 19448 | -4/Proximity Caves | Lost 5 parts (2n3u) 19586 | -4/Proximity Caves | Spotted B-86 Titan 19641 | -4/Proximity Caves | Destroyed B-86 Titan 19692 | -4/Proximity Caves | Discovered new exit (range 11) 19845 | -4/Proximity Caves | Entered Factory 19845 | -4/Factory | Evolved 2 slots: Utility x2 19847 | -4/Factory | Loaded intel: 4 garrison access locations 20086 | -4/Factory | Repaired Broken Rnf. Fission Core 20131 | -4/Factory | Build established: Scavenger-Gunner 20206 | -4/Factory | System corruption reached 10% 20368 | -4/Factory | Self-destructed Last Messages --------------- 20205_ Enh. Gauss Cannon destroyed. 20206_ Acquired 3 matter. 20206_ Acquired 36 matter. 20206_ Acquired 3 matter. 20206_ P-70 Sage Hpw. Shock Rifle blasted off. 20207_ Acquired 6 matter. 20208_ Assembly Bed disabled. 20209_ P-70 Sage destroyed. 20210_ Acquired 45 matter. 20210_ Acquired 5 matter. 20216_ Acquired Imp. Target Analyzer. 20230_ OW83G5WT CE